[Event "*** Qualifier 3: Titled Tuesday 3|2 Blitz"]
[Site "Chess.com"]
[Date "2017.04.18"]
[Round "1"]
[White "SabinaFoisor"]
[Black "A-Fier"]
[Result "0-1"]
[WhiteElo "2171"]
[BlackElo "2486"]
[TimeControl "180+2"]
[EndTime "13:08:42 PDT"]
[Termination "A-Fier won on time"]

1. d4 {[%clk 0:03:01.8]} 1... Nf6 {[%clk 0:02:55.2]} 2. Bf4 {[%clk 0:02:59]}
2... c5 {[%clk 0:02:53.4]} 3. e3 {[%clk 0:02:58.1]} 3... Nd5 {[%clk 0:02:54.5]}
4. Bg3 {[%clk 0:02:58.5]} 4... Qb6 {[%clk 0:02:53.9]} 5. b3 {[%clk 0:02:48.4]}
5... cxd4 {[%clk 0:02:43.2]} 6. exd4 {[%clk 0:02:46.5]} 6... e5 {[%clk
0:02:32.1]} 7. Bc4 {[%clk 0:02:36.1]} 7... Bb4+ {[%clk 0:02:32.3]} 8. Kf1 {[%clk
0:02:36.7]} 8... Nc3 {[%clk 0:02:17.7]} 9. Qf3 {[%clk 0:02:03.8]} 9... d5 {[%clk
0:02:10.8]} 10. Nxc3 {[%clk 0:01:29]} 10... Qxd4 {[%clk 0:00:59.9]} 11. Bxe5
{[%clk 0:01:21.2]} 11... Qxe5 {[%clk 0:00:54.1]} 12. Re1 {[%clk 0:01:20.7]}
12... Qxe1+ {[%clk 0:00:55.6]} 13. Kxe1 {[%clk 0:01:21.5]} 13... dxc4 {[%clk
0:00:57.2]} 14. Qe4+ {[%clk 0:01:06.9]} 14... Kf8 {[%clk 0:00:57.6]} 15. Ne2
{[%clk 0:01:06.9]} 15... Nc6 {[%clk 0:00:56.3]} 16. Qxc4 {[%clk 0:01:07]} 16...
Be6 {[%clk 0:00:56.3]} 17. Qb5 {[%clk 0:00:59.3]} 17... Rb8 {[%clk 0:00:47.7]}
18. Kd1 {[%clk 0:00:53]} 18... a6 {[%clk 0:00:45.7]} 19. Qh5 {[%clk 0:00:48.4]}
19... Ba3 {[%clk 0:00:46.1]} 20. Nf4 {[%clk 0:00:40.2]} 20... Rd8+ {[%clk
0:00:47.2]} 21. Nd3 {[%clk 0:00:39.5]} 21... g6 {[%clk 0:00:46.9]} 22. Qh6+
{[%clk 0:00:37.1]} 22... Ke7 {[%clk 0:00:46.2]} 23. Re1 {[%clk 0:00:32.4]} 23...
Kd7 {[%clk 0:00:43.9]} 24. Ne4 {[%clk 0:00:29.8]} 24... Kc8 {[%clk 0:00:43.5]}
25. f3 {[%clk 0:00:24.7]} 25... Bf5 {[%clk 0:00:36.8]} 26. Qf4 {[%clk
0:00:19.8]} 26... Rd5 {[%clk 0:00:26.1]} 27. g4 {[%clk 0:00:20.5]} 27... Be6
{[%clk 0:00:27.4]} 28. h4 {[%clk 0:00:19.9]} 28... Rhd8 {[%clk 0:00:28.4]} 29.
Nf2 {[%clk 0:00:16.6]} 29... Bd6 {[%clk 0:00:28.2]} 30. Qe3 {[%clk 0:00:15.7]}
30... Bg3 {[%clk 0:00:28.6]} 31. Re2 {[%clk 0:00:15.5]} 31... Bxh4 {[%clk
0:00:29.4]} 32. Ne4 {[%clk 0:00:13.9]} 32... Nd4 {[%clk 0:00:27.9]} 33. Rd2
{[%clk 0:00:10.2]} 33... f5 {[%clk 0:00:21.6]} 34. Nc3 {[%clk 0:00:07.7]} 34...
R5d6 {[%clk 0:00:19.8]} 35. Ne2 {[%clk 0:00:08.5]} 35... Nc6 {[%clk 0:00:17.1]}
36. c3 {[%clk 0:00:07.7]} 36... fxg4 {[%clk 0:00:17.8]} 37. Kc2 {[%clk
0:00:07.3]} 37... gxf3 {[%clk 0:00:18.3]} 38. Qxf3 {[%clk 0:00:09.2]} 38... Bf5
{[%clk 0:00:19.5]} 39. Nf4 {[%clk 0:00:04.4]} 39... Bg5 {[%clk 0:00:20.6]} 0-1

[Event "*** Qualifier 3: Titled Tuesday 3|2 Blitz"]
[Site "Chess.com"]
[Date "2017.04.18"]
[Round "1"]
[White "rubhani"]
[Black "DanielNaroditsky"]
[Result "0-1"]
[WhiteElo "2372"]
[BlackElo "2734"]
[TimeControl "180+2"]
[EndTime "13:08:54 PDT"]
[Termination "DanielNaroditsky won on time"]

1. e4 {[%clk 0:02:56.3]} 1... e5 {[%clk 0:03:00.2]} 2. Nf3 {[%clk 0:02:50.2]}
2... Nc6 {[%clk 0:03:01.6]} 3. Bb5 {[%clk 0:02:51.2]} 3... a6 {[%clk 0:03:01.6]}
4. Ba4 {[%clk 0:02:52.2]} 4... Nf6 {[%clk 0:03:02.7]} 5. d3 {[%clk 0:02:53.5]}
5... d6 {[%clk 0:03:00.6]} 6. c3 {[%clk 0:02:53.6]} 6... g6 {[%clk 0:03:01.7]}
7. O-O {[%clk 0:02:54.7]} 7... Bg7 {[%clk 0:03:03]} 8. Re1 {[%clk 0:02:56.1]}
8... O-O {[%clk 0:03:03.9]} 9. Nbd2 {[%clk 0:02:57.7]} 9... Bd7 {[%clk
0:03:00.5]} 10. h3 {[%clk 0:02:57.4]} 10... Qe8 {[%clk 0:02:59.8]} 11. Bc2
{[%clk 0:02:56]} 11... Nh5 {[%clk 0:02:58.7]} 12. Nf1 {[%clk 0:02:53.8]} 12...
f5 {[%clk 0:02:58.4]} 13. Ne3 {[%clk 0:02:47.4]} 13... f4 {[%clk 0:02:41.7]} 14.
Nd5 {[%clk 0:02:43]} 14... Qd8 {[%clk 0:02:37.1]} 15. b4 {[%clk 0:02:29.7]}
15... Na7 {[%clk 0:02:30.8]} 16. c4 {[%clk 0:02:14]} 16... c6 {[%clk 0:02:31.7]}
17. Nc3 {[%clk 0:02:12.2]} 17... Be6 {[%clk 0:02:33.5]} 18. a4 {[%clk
0:01:57.5]} 18... Kh8 {[%clk 0:02:30.1]} 19. Bb3 {[%clk 0:01:47.5]} 19... g5
{[%clk 0:02:30.6]} 20. c5 {[%clk 0:01:45.8]} 20... Bc8 {[%clk 0:02:21.7]} 21.
cxd6 {[%clk 0:01:40.4]} 21... g4 {[%clk 0:02:23.1]} 22. Nh2 {[%clk 0:01:22.1]}
22... f3 {[%clk 0:02:24.3]} 23. hxg4 {[%clk 0:01:21.1]} 23... Nf4 {[%clk
0:02:25.6]} 24. Bxf4 {[%clk 0:01:16.9]} 24... Rxf4 {[%clk 0:02:25.2]} 25. g3
{[%clk 0:01:14.2]} 25... Rf8 {[%clk 0:02:22.5]} 26. Re3 {[%clk 0:01:10.9]} 26...
Qxd6 {[%clk 0:02:21.1]} 27. Rxf3 {[%clk 0:01:02.7]} 27... Bd7 {[%clk 0:02:22.4]}
28. Rb1 {[%clk 0:00:52.7]} 28... Rxf3 {[%clk 0:02:16.8]} 29. Qxf3 {[%clk
0:00:52.9]} 29... Rf8 {[%clk 0:02:18.5]} 30. Qe2 {[%clk 0:00:52]} 30... Qxb4
{[%clk 0:02:13.3]} 31. Be6 {[%clk 0:00:49.3]} 31... Qd6 {[%clk 0:02:12.4]} 32.
Bxd7 {[%clk 0:00:50.3]} 32... Qxd7 {[%clk 0:02:14.3]} 33. Nd1 {[%clk 0:00:51.5]}
33... b5 {[%clk 0:02:10]} 34. axb5 {[%clk 0:00:49.6]} 34... Nxb5 {[%clk
0:02:10.9]} 35. Rc1 {[%clk 0:00:45.3]} 35... Nd4 {[%clk 0:02:08.6]} 36. Qa2
{[%clk 0:00:44.7]} 36... Bh6 {[%clk 0:01:50.8]} 37. Rc5 {[%clk 0:00:41.2]} 37...
Qe7 {[%clk 0:01:46.9]} 38. Ra5 {[%clk 0:00:35.3]} 38... Qb4 {[%clk 0:01:45.4]}
39. Kf1 {[%clk 0:00:16]} 39... Nc2 {[%clk 0:01:27.6]} 40. Qe6 {[%clk 0:00:09.5]}
40... Bg7 {[%clk 0:01:08.6]} 41. Rxa6 {[%clk 0:00:06.7]} 41... Qe1+ {[%clk
0:01:09.8]} 0-1

[Event "*** Qualifier 3: Titled Tuesday 3|2 Blitz"]
[Site "Chess.com"]
[Date "2017.04.18"]
[Round "1"]
[White "aa175"]
[Black "likantrophuss"]
[Result "0-1"]
[WhiteElo "1848"]
[BlackElo "2396"]
[TimeControl "180+2"]
[EndTime "13:08:57 PDT"]
[Termination "likantrophuss won by checkmate"]

1. e4 {[%clk 0:03:02]} 1... g6 {[%clk 0:02:56.2]} 2. d4 {[%clk 0:03:02.1]} 2...
Bg7 {[%clk 0:02:42.2]} 3. c4 {[%clk 0:02:59.7]} 3... d6 {[%clk 0:02:36.3]} 4.
Nc3 {[%clk 0:02:59.4]} 4... Nf6 {[%clk 0:02:33.8]} 5. h3 {[%clk 0:02:58.6]} 5...
O-O {[%clk 0:02:35]} 6. Nf3 {[%clk 0:02:59.7]} 6... Na6 {[%clk 0:02:36.1]} 7.
Be2 {[%clk 0:02:58.7]} 7... c5 {[%clk 0:02:37]} 8. d5 {[%clk 0:02:59.3]} 8...
Nc7 {[%clk 0:02:38.2]} 9. O-O {[%clk 0:02:59.8]} 9... e6 {[%clk 0:02:39.5]} 10.
a3 {[%clk 0:02:55.7]} 10... exd5 {[%clk 0:02:41.4]} 11. exd5 {[%clk 0:02:56.6]}
11... a6 {[%clk 0:02:42.5]} 12. Bg5 {[%clk 0:02:54.8]} 12... h6 {[%clk 0:02:43]}
13. Be3 {[%clk 0:02:45.7]} 13... Re8 {[%clk 0:02:43.8]} 14. Qc2 {[%clk
0:02:38.2]} 14... Qe7 {[%clk 0:02:44.2]} 15. Rfe1 {[%clk 0:02:34.7]} 15... Qf8
{[%clk 0:02:39.2]} 16. Bd3 {[%clk 0:02:30.6]} 16... Bd7 {[%clk 0:02:38.8]} 17.
Rab1 {[%clk 0:02:06.6]} 17... b5 {[%clk 0:02:38.1]} 18. b3 {[%clk 0:01:40.4]}
18... Rab8 {[%clk 0:02:34.7]} 19. a4 {[%clk 0:01:30.4]} 19... Nh5 {[%clk
0:02:10.5]} 20. g4 {[%clk 0:01:09.2]} 20... Nf6 {[%clk 0:02:07.2]} 21. axb5
{[%clk 0:01:09.7]} 21... axb5 {[%clk 0:02:07.8]} 22. Nxb5 {[%clk 0:01:05.9]}
22... Nxb5 {[%clk 0:02:06.4]} 23. cxb5 {[%clk 0:01:07.8]} 23... Bxb5 {[%clk
0:02:07.2]} 24. Bc4 {[%clk 0:01:00.9]} 24... Nd7 {[%clk 0:02:01]} 25. Qd3 {[%clk
0:00:58.4]} 25... Bxc4 {[%clk 0:01:56.6]} 26. bxc4 {[%clk 0:01:00.3]} 26... f5
{[%clk 0:01:55]} 27. Nh4 {[%clk 0:00:42.7]} 27... Ne5 {[%clk 0:01:53.9]} 28. Qc2
{[%clk 0:00:40.4]} 28... Rxb1 {[%clk 0:01:55.1]} 29. Rxb1 {[%clk 0:00:40.4]}
29... f4 {[%clk 0:01:53.4]} 30. Bd2 {[%clk 0:00:27.2]} 30... Qf6 {[%clk
0:01:53.4]} 31. Bc3 {[%clk 0:00:21.4]} 31... Qxh4 {[%clk 0:01:43.5]} 32. Bxe5
{[%clk 0:00:22.1]} 32... dxe5 {[%clk 0:01:39.9]} 33. Qxg6 {[%clk 0:00:22.7]}
33... Qe7 {[%clk 0:01:39]} 34. Rb6 {[%clk 0:00:15.7]} 34... Qf7 {[%clk
0:01:38.3]} 35. Qe4 {[%clk 0:00:14.9]} 35... f3 {[%clk 0:01:38.6]} 36. Rb3
{[%clk 0:00:14.7]} 36... Qf4 {[%clk 0:01:39]} 37. Qxf4 {[%clk 0:00:08.6]} 37...
exf4 {[%clk 0:01:39.5]} 38. Rxf3 {[%clk 0:00:10.5]} 38... Re4 {[%clk 0:01:40.8]}
39. d6 {[%clk 0:00:09.6]} 39... Kf7 {[%clk 0:01:40.2]} 40. Rd3 {[%clk
0:00:09.5]} 40... Bd4 {[%clk 0:01:40.2]} 41. Kg2 {[%clk 0:00:08.9]} 41... Ke6
{[%clk 0:01:39.2]} 42. Kf3 {[%clk 0:00:09.9]} 42... Re1 {[%clk 0:01:39.2]} 43.
Kxf4 {[%clk 0:00:09.3]} 43... Kxd6 {[%clk 0:01:38.5]} 44. Kf5 {[%clk 0:00:09.8]}
44... Re5+ {[%clk 0:01:35.8]} 45. Kg6 {[%clk 0:00:10.7]} 45... Re6+ {[%clk
0:01:35.1]} 46. Kh5 {[%clk 0:00:11.5]} 46... Ke7 {[%clk 0:01:34.9]} 47. Rf3
{[%clk 0:00:10.5]} 47... Rb6 {[%clk 0:01:29.4]} 48. Rf4 {[%clk 0:00:08.4]} 48...
Ke6 {[%clk 0:01:23.9]} 49. Re4+ {[%clk 0:00:09.3]} 49... Kf7 {[%clk 0:01:21.7]}
50. f4 {[%clk 0:00:09.8]} 50... Rb4 {[%clk 0:01:13.4]} 51. Kxh6 {[%clk
0:00:09.6]} 51... Rxc4 {[%clk 0:01:14.4]} 52. g5 {[%clk 0:00:10.6]} 52... Bg7+
{[%clk 0:01:14.8]} 53. Kh7 {[%clk 0:00:10.8]} 53... Rxe4 {[%clk 0:01:16.7]} 54.
g6+ {[%clk 0:00:12.1]} 54... Kf6 {[%clk 0:01:17.4]} 55. h4 {[%clk 0:00:12.2]}
55... Re8 {[%clk 0:01:16.4]} 56. f5 {[%clk 0:00:10.2]} 56... Rh8# {[%clk
0:01:15.3]} 0-1

[Event "*** Qualifier 3: Titled Tuesday 3|2 Blitz"]
[Site "Chess.com"]
[Date "2017.04.18"]
[Round "1"]
[White "roldieyi"]
[Black "Elshan1985"]
[Result "0-1"]
[WhiteElo "2221"]
[BlackElo "2509"]
[TimeControl "180+2"]
[EndTime "13:09:00 PDT"]
[Termination "Elshan1985 won by checkmate"]

1. d4 {[%clk 0:02:56.1]} 1... Nf6 {[%clk 0:02:59.8]} 2. Nf3 {[%clk 0:02:56.5]}
2... e6 {[%clk 0:03:00.8]} 3. Bg5 {[%clk 0:02:56.5]} 3... h6 {[%clk 0:03:01]} 4.
Bh4 {[%clk 0:02:55.7]} 4... d6 {[%clk 0:02:59.5]} 5. e3 {[%clk 0:02:56.1]} 5...
Nbd7 {[%clk 0:02:54]} 6. Bd3 {[%clk 0:02:56.4]} 6... Qe7 {[%clk 0:02:48.4]} 7.
Nbd2 {[%clk 0:02:54.3]} 7... g5 {[%clk 0:02:46.6]} 8. Bg3 {[%clk 0:02:53.4]}
8... Nh5 {[%clk 0:02:47.9]} 9. c4 {[%clk 0:02:41.6]} 9... Bg7 {[%clk 0:02:47]}
10. a3 {[%clk 0:02:38]} 10... b6 {[%clk 0:02:43.7]} 11. Be4 {[%clk 0:02:35.9]}
11... Rb8 {[%clk 0:02:42.4]} 12. Bc6 {[%clk 0:02:35.4]} 12... O-O {[%clk
0:02:41.3]} 13. O-O {[%clk 0:02:34.8]} 13... Ndf6 {[%clk 0:02:39.3]} 14. e4
{[%clk 0:02:28.7]} 14... Nxg3 {[%clk 0:02:34.4]} 15. hxg3 {[%clk 0:02:28.5]}
15... e5 {[%clk 0:02:33.6]} 16. dxe5 {[%clk 0:02:22.4]} 16... dxe5 {[%clk
0:02:33.8]} 17. Qa4 {[%clk 0:02:22.5]} 17... a6 {[%clk 0:02:28.7]} 18. Rad1
{[%clk 0:02:13.4]} 18... Nd7 {[%clk 0:02:28.7]} 19. b4 {[%clk 0:02:11.7]} 19...
Rd8 {[%clk 0:02:18.8]} 20. Rfe1 {[%clk 0:02:11.5]} 20... Nf8 {[%clk 0:02:19.7]}
21. Nf1 {[%clk 0:02:11]} 21... Ne6 {[%clk 0:02:16.3]} 22. Ne3 {[%clk 0:02:09.6]}
22... Nd4 {[%clk 0:02:14.8]} 23. Nd5 {[%clk 0:01:46.4]} 23... Qd6 {[%clk
0:02:12]} 24. Nxd4 {[%clk 0:01:35.9]} 24... exd4 {[%clk 0:02:11.4]} 25. b5
{[%clk 0:01:28.3]} 25... axb5 {[%clk 0:02:03.4]} 26. cxb5 {[%clk 0:01:28.8]}
26... Be6 {[%clk 0:02:01.8]} 27. Qa7 {[%clk 0:01:18.4]} 27... Be5 {[%clk
0:01:43.6]} 28. Rd3 {[%clk 0:01:06.1]} 28... Rbc8 {[%clk 0:01:35]} 29. Rf1
{[%clk 0:00:59.2]} 29... f5 {[%clk 0:01:34.7]} 30. f4 {[%clk 0:00:48.6]} 30...
Bg7 {[%clk 0:01:24.5]} 31. e5 {[%clk 0:00:41.1]} 31... Qc5 {[%clk 0:01:25.6]}
32. Nxc7 {[%clk 0:00:31.6]} 32... Qe7 {[%clk 0:01:26.5]} 33. Qxb6 {[%clk
0:00:26.6]} 33... Qxc7 {[%clk 0:01:27]} 34. Qc5 {[%clk 0:00:26.5]} 34... Bf8
{[%clk 0:01:22.2]} 35. Qc1 {[%clk 0:00:20.2]} 35... g4 {[%clk 0:01:23]} 36. a4
{[%clk 0:00:19.7]} 36... Qa5 {[%clk 0:01:22.8]} 37. Qa1 {[%clk 0:00:14.9]} 37...
Bc4 {[%clk 0:01:21.8]} 38. Rxd4 {[%clk 0:00:15.3]} 38... Bc5 {[%clk 0:01:18]}
39. Rd1 {[%clk 0:00:13.9]} 39... Rxd4 {[%clk 0:01:18.1]} 40. Rxd4 {[%clk
0:00:14.3]} 40... Qd8 {[%clk 0:01:19.1]} 41. Kh2 {[%clk 0:00:12.9]} 41... Qxd4
{[%clk 0:01:19.7]} 42. Qb1 {[%clk 0:00:13]} 42... Be6 {[%clk 0:01:16.2]} 43. a5
{[%clk 0:00:10.9]} 43... h5 {[%clk 0:01:16]} 44. a6 {[%clk 0:00:08.5]} 44... h4
{[%clk 0:01:17.2]} 45. b6 {[%clk 0:00:09.2]} 45... hxg3+ {[%clk 0:01:17.5]} 46.
Kxg3 {[%clk 0:00:09.4]} 46... Qe3+ {[%clk 0:01:18.4]} 47. Kh2 {[%clk 0:00:10.5]}
47... Qxf4+ {[%clk 0:01:19.7]} 48. Kh1 {[%clk 0:00:11]} 48... Qh6# {[%clk
0:01:20.2]} 0-1

[Event "*** Qualifier 3: Titled Tuesday 3|2 Blitz"]
[Site "Chess.com"]
[Date "2017.04.18"]
[Round "1"]
[White "Alex_Molchanov"]
[Black "aRk_iN"]
[Result "1-0"]
[WhiteElo "2435"]
[BlackElo "2086"]
[TimeControl "180+2"]
[EndTime "13:09:05 PDT"]
[Termination "Alex_Molchanov won by resignation"]

1. d4 {[%clk 0:03:02]} 1... Nf6 {[%clk 0:03:00.7]} 2. c4 {[%clk 0:03:02.5]} 2...
g6 {[%clk 0:03:01.9]} 3. Nc3 {[%clk 0:03:02.9]} 3... d5 {[%clk 0:03:03]} 4. Bg5
{[%clk 0:03:03.2]} 4... c6 {[%clk 0:02:38]} 5. Bxf6 {[%clk 0:02:55]} 5... exf6
{[%clk 0:02:39.9]} 6. cxd5 {[%clk 0:02:55.7]} 6... cxd5 {[%clk 0:02:40.3]} 7. e3
{[%clk 0:02:56.4]} 7... Bg7 {[%clk 0:02:38.7]} 8. Qb3 {[%clk 0:02:55.3]} 8...
Be6 {[%clk 0:02:16]} 9. Qxb7 {[%clk 0:02:54.8]} 9... Nd7 {[%clk 0:02:14.4]} 10.
Bb5 {[%clk 0:02:10.7]} 10... O-O {[%clk 0:02:10.1]} 11. Bxd7 {[%clk 0:02:08.4]}
11... Bxd7 {[%clk 0:01:30.6]} 12. Qxd5 {[%clk 0:02:09]} 12... Rc8 {[%clk
0:01:08.9]} 13. Nf3 {[%clk 0:02:00.5]} 13... Qb6 {[%clk 0:00:53.1]} 14. Qxd7
{[%clk 0:01:49.2]} 14... Qxb2 {[%clk 0:00:54]} 15. O-O {[%clk 0:01:48.9]} 15...
Rxc3 {[%clk 0:00:48]} 16. Qxa7 {[%clk 0:01:48.3]} 16... Ra3 {[%clk 0:00:49]} 17.
Qc5 {[%clk 0:01:21.9]} 17... Rxa2 {[%clk 0:00:50]} 18. Rab1 {[%clk 0:00:58.7]}
18... Qe2 {[%clk 0:00:45.4]} 19. Rb7 {[%clk 0:00:52.8]} 19... f5 {[%clk
0:00:37.8]} 20. Qd5 {[%clk 0:00:42.4]} 20... h6 {[%clk 0:00:35.3]} 21. h4 {[%clk
0:00:30.9]} 21... Qc2 {[%clk 0:00:18]} 22. Rd7 {[%clk 0:00:25.3]} 22... Ra6
{[%clk 0:00:09.8]} 23. Ne5 {[%clk 0:00:16.6]} 23... Bxe5 {[%clk 0:00:04.8]} 24.
Qxe5 {[%clk 0:00:18.5]} 24... Qe4 {[%clk 0:00:05.3]} 25. Qxe4 {[%clk 0:00:18]}
25... fxe4 {[%clk 0:00:07.2]} 26. Re7 {[%clk 0:00:19.4]} 26... f5 {[%clk
0:00:07.3]} 27. Rb1 {[%clk 0:00:19.6]} 27... Rf7 {[%clk 0:00:08.2]} 28. Rbb7
{[%clk 0:00:14.9]} 28... Rxe7 {[%clk 0:00:08.9]} 29. Rxe7 {[%clk 0:00:16.8]}
29... h5 {[%clk 0:00:10.3]} 30. Kh2 {[%clk 0:00:15.4]} 30... Kf8 {[%clk
0:00:11.8]} 31. Rb7 {[%clk 0:00:16.2]} 31... Ra2 {[%clk 0:00:12.7]} 32. Kg3
{[%clk 0:00:17.4]} 32... Rc2 {[%clk 0:00:14]} 33. f3 {[%clk 0:00:16.8]} 33...
exf3 {[%clk 0:00:14.6]} 34. gxf3 {[%clk 0:00:18]} 34... Rc3 {[%clk 0:00:15.7]}
35. Kf4 {[%clk 0:00:19.2]} 35... Ra3 {[%clk 0:00:15.3]} 36. d5 {[%clk
0:00:18.8]} 36... Rd3 {[%clk 0:00:08]} 37. e4 {[%clk 0:00:19.5]} 37... fxe4
{[%clk 0:00:08.6]} 38. fxe4 {[%clk 0:00:21.3]} 38... Rh3 {[%clk 0:00:09.4]} 39.
Ke5 {[%clk 0:00:19.9]} 39... Rxh4 {[%clk 0:00:10]} 40. d6 {[%clk 0:00:21]} 40...
Ke8 {[%clk 0:00:07.7]} 41. Kd5 {[%clk 0:00:16.3]} 41... Rh1 {[%clk 0:00:08.6]}
42. e5 {[%clk 0:00:17.5]} 42... Rd1+ {[%clk 0:00:06.2]} 43. Ke6 {[%clk
0:00:18.8]} 43... Kf8 {[%clk 0:00:07.7]} 44. d7 {[%clk 0:00:16.6]} 44... h4
{[%clk 0:00:05.3]} 45. Rb8+ {[%clk 0:00:17.5]} 45... Kg7 {[%clk 0:00:06.7]} 46.
d8=Q {[%clk 0:00:19.4]} 46... Rxd8 {[%clk 0:00:06.4]} 47. Rxd8 {[%clk
0:00:21.3]} 1-0

[Event "*** Qualifier 3: Titled Tuesday 3|2 Blitz"]
[Site "Chess.com"]
[Date "2017.04.18"]
[Round "1"]
[White "Sanan_Sjugirov"]
[Black "Feegus"]
[Result "1-0"]
[WhiteElo "2667"]
[BlackElo "2353"]
[TimeControl "180+2"]
[EndTime "13:09:10 PDT"]
[Termination "Sanan_Sjugirov won by resignation"]

1. d4 {[%clk 0:03:00.2]} 1... Nf6 {[%clk 0:02:58.7]} 2. Nf3 {[%clk 0:03:00.5]}
2... g6 {[%clk 0:02:59]} 3. Bg5 {[%clk 0:03:01]} 3... Bg7 {[%clk 0:02:59.7]} 4.
Nbd2 {[%clk 0:03:00.6]} 4... d5 {[%clk 0:02:58.6]} 5. e3 {[%clk 0:03:00.7]} 5...
O-O {[%clk 0:02:59.6]} 6. Bd3 {[%clk 0:03:00.7]} 6... b6 {[%clk 0:02:58]} 7. Qe2
{[%clk 0:02:58.8]} 7... Bb7 {[%clk 0:02:58.7]} 8. c3 {[%clk 0:02:58.3]} 8... c5
{[%clk 0:02:51.5]} 9. h4 {[%clk 0:02:55]} 9... Ne4 {[%clk 0:02:38.1]} 10. Bf4
{[%clk 0:02:43]} 10... h6 {[%clk 0:02:35.7]} 11. Be5 {[%clk 0:02:37.3]} 11... f6
{[%clk 0:02:29.5]} 12. Bh2 {[%clk 0:02:35.4]} 12... Nd7 {[%clk 0:02:29.8]} 13.
c4 {[%clk 0:01:58.2]} 13... e6 {[%clk 0:02:28.3]} 14. cxd5 {[%clk 0:01:54]}
14... exd5 {[%clk 0:02:27.4]} 15. O-O {[%clk 0:01:49.7]} 15... f5 {[%clk
0:02:21.7]} 16. Rac1 {[%clk 0:01:30.9]} 16... Kh7 {[%clk 0:02:21.4]} 17. Bb1
{[%clk 0:01:25]} 17... Re8 {[%clk 0:02:21.7]} 18. h5 {[%clk 0:01:22.5]} 18... g5
{[%clk 0:02:22.2]} 19. dxc5 {[%clk 0:01:19.3]} 19... bxc5 {[%clk 0:02:20.5]} 20.
Nxe4 {[%clk 0:01:14.9]} 20... fxe4 {[%clk 0:02:07.6]} 21. Nd2 {[%clk 0:01:15.2]}
21... Qb6 {[%clk 0:02:02.7]} 22. f4 {[%clk 0:00:59.9]} 22... Ba6 {[%clk
0:01:48.1]} 23. Qg4 {[%clk 0:01:01]} 23... Bxf1 {[%clk 0:01:41.4]} 24. Rxf1
{[%clk 0:00:49.8]} 24... Qe6 {[%clk 0:01:40.4]} 25. Qe2 {[%clk 0:00:43.2]} 25...
Rab8 {[%clk 0:01:28.3]} 26. b3 {[%clk 0:00:43.7]} 26... Nf6 {[%clk 0:01:18.1]}
27. fxg5 {[%clk 0:00:38.6]} 27... hxg5 {[%clk 0:01:18.7]} 28. Bxb8 {[%clk
0:00:36.4]} 28... Rxb8 {[%clk 0:01:18.5]} 29. Rc1 {[%clk 0:00:30.3]} 29... Qg4
{[%clk 0:01:16.1]} 30. Qf2 {[%clk 0:00:20.9]} 30... Qxh5 {[%clk 0:01:15.2]} 31.
Rxc5 {[%clk 0:00:18.3]} 31... Ng4 {[%clk 0:01:15.5]} 32. Qf5+ {[%clk 0:00:19.4]}
32... Kh8 {[%clk 0:01:15.8]} 33. Nf1 {[%clk 0:00:18.3]} 33... Rf8 {[%clk
0:01:15.9]} 34. Rc8 {[%clk 0:00:19.5]} 34... Rxc8 {[%clk 0:01:02.6]} 35. Qxc8+
{[%clk 0:00:21.4]} 35... Kh7 {[%clk 0:01:04.5]} 36. Qf5+ {[%clk 0:00:22.4]}
36... Kh8 {[%clk 0:01:04]} 37. Qxd5 {[%clk 0:00:22.8]} 37... Qh4 {[%clk
0:01:04]} 38. Qa8+ {[%clk 0:00:23.1]} 38... Kh7 {[%clk 0:00:58.1]} 39. Qxe4+
{[%clk 0:00:24.1]} 39... Kg8 {[%clk 0:00:59.4]} 40. Qe8+ {[%clk 0:00:23.6]}
40... Bf8 {[%clk 0:00:58]} 41. Qe6+ {[%clk 0:00:22.6]} 41... Kg7 {[%clk
0:00:50.7]} 42. Qd7+ {[%clk 0:00:23.1]} 42... Kg8 {[%clk 0:00:50.5]} 43. Qd5+
{[%clk 0:00:23.4]} 43... Kg7 {[%clk 0:00:48.2]} 44. Qb7+ {[%clk 0:00:21.8]}
44... Kg8 {[%clk 0:00:47.5]} 45. Qf3 {[%clk 0:00:20.2]} 45... Bc5 {[%clk
0:00:34.5]} 46. g3 {[%clk 0:00:16]} 46... Bxe3+ {[%clk 0:00:32.6]} 47. Kg2
{[%clk 0:00:15.7]} 47... Qh5 {[%clk 0:00:27.4]} 48. Bf5 {[%clk 0:00:16.2]} 1-0